Body Name,Document Number,Service,Type of Expenditure,Invoice Date,Supplier Name,Cost to the Council (Amount Exc VAT),Month
EREWASH BOROUGH COUNCIL,5606,Non-domestic Rates Collection ,Fees Costs and Expenses       ,03-Nov-2021,INFORM CPI LTD                          ,440.00,Dec-21
EREWASH BOROUGH COUNCIL,6237,Ilkeston Charter Fair         ,Contracted Services           ,24-Nov-2021,INTER-COUNTY PARAMEDICS LTD             ,"8,513.44",Dec-21
EREWASH BOROUGH COUNCIL,6236,Fireworks Display             ,Special Events                ,24-Nov-2021,INTER-COUNTY PARAMEDICS LTD             ,728.00,Dec-21
EREWASH BOROUGH COUNCIL,6370,Car Parking                   ,Credit/Debit Card Charges     ,30-Nov-2021,INTERNATIONAL PARKING SYSTEMS UK LTD    ,"1,281.08",Dec-21
EREWASH BOROUGH COUNCIL,5871,Car Parking                   ,General Equipment             ,16-Nov-2021,INTERNATIONAL PARKING SYSTEMS UK LTD    ,360.00,Dec-21
EREWASH BOROUGH COUNCIL,6371,Car Parking                   ,Credit/Debit Card Charges     ,31-Oct-2021,INTERNATIONAL PARKING SYSTEMS UK LTD    ,"1,178.76",Dec-21
EREWASH BOROUGH COUNCIL,6017,Revenues and Benefits         ,Courses and Seminars          ,18-Nov-2021,IRRV                                    ,"1,200.00",Dec-21
EREWASH BOROUGH COUNCIL,6626,Homelessness                  ,Agency Staff                  ,24-Nov-2021,JAMES ANDREWS RECRUITMENT SOLUTIONS     ,"1,480.00",Dec-21
EREWASH BOROUGH COUNCIL,6628,Homelessness                  ,Agency Staff                  ,30-Nov-2021,JAMES ANDREWS RECRUITMENT SOLUTIONS     ,"1,480.00",Dec-21
EREWASH BOROUGH COUNCIL,6625,Homelessness                  ,Agency Staff                  ,16-Nov-2021,JAMES ANDREWS RECRUITMENT SOLUTIONS     ,"1,480.00",Dec-21
EREWASH BOROUGH COUNCIL,5602,Homelessness                  ,Agency Staff                  ,02-Nov-2021,JAMES ANDREWS RECRUITMENT SOLUTIONS     ,"1,480.00",Dec-21
EREWASH BOROUGH COUNCIL,5870,Homelessness                  ,Agency Staff                  ,09-Nov-2021,JAMES ANDREWS RECRUITMENT SOLUTIONS     ,"1,480.00",Dec-21
EREWASH BOROUGH COUNCIL,6232,Civic Duties Hospitality      ,Civic Events                  ,24-Nov-2021,JENSON PRESS PRINTERS                   ,295.00,Dec-21
EREWASH BOROUGH COUNCIL,6457,General Entertainment         ,Special Events                ,25-Nov-2021,JOKER ENTERTAINMENT                     ,450.00,Dec-21
EREWASH BOROUGH COUNCIL,6457,General Entertainment         ,Special Events                ,25-Nov-2021,JOKER ENTERTAINMENT                     ,450.00,Dec-21
EREWASH BOROUGH COUNCIL,6865,Christmas Lights              ,Planned Preventative Maintenan,22-Oct-2021,REDACTED PERSONAL DATA,"3,040.00",Dec-21
EREWASH BOROUGH COUNCIL,6831,Homelessness                  ,Homelessness-Lease Properties ,06-Dec-2021,JP'S GROUNDS & MAINTENANCE SERVICES     ,420.00,Dec-21
EREWASH BOROUGH COUNCIL,6369,EBC Balance Sheet             ,Childcare Salary Sacrifice    ,03-Dec-2021,KIDDIVOUCHERS LTD                       ,333.00,Dec-21
EREWASH BOROUGH COUNCIL,6359,Front Line Support Services   ,Security                      ,30-Nov-2021,KINGS ARMOURED SECURITY SERVICES        ,732.90,Dec-21
EREWASH BOROUGH COUNCIL,6373,Car Parking                   ,Credit/Debit Card Charges     ,31-Oct-2021,KINGS ARMOURED SECURITY SERVICES        ,260.23,Dec-21
EREWASH BOROUGH COUNCIL,6372,Car Parking                   ,Credit/Debit Card Charges     ,31-Oct-2021,KINGS ARMOURED SECURITY SERVICES        ,"1,552.95",Dec-21
EREWASH BOROUGH COUNCIL,6257,Planning                      ,External Property Works       ,29-Nov-2021,KIWA CMT TESTING                        ,495.00,Dec-21
EREWASH BOROUGH COUNCIL,5468,Household Waste Collection    ,Agency Staff                  ,04-Nov-2021,QUALITY SERVICE RECRUITMENT LTD         ,530.21,Dec-21
EREWASH BOROUGH COUNCIL,6587,Building Control Adv & Inform ,Contracted Services           ,01-Dec-2021,RANSOMWOOD ESTATES UK LIMITED           ,531.67,Dec-21
EREWASH BOROUGH COUNCIL,6259,Building Control - Fee Earning,Agency Staff                  ,19-Nov-2021,REED SPECIALIST RECRUITMENT LTD         ,650.46,Dec-21
EREWASH BOROUGH COUNCIL,6429,Building Control - Fee Earning,Agency Staff                  ,26-Nov-2021,REED SPECIALIST RECRUITMENT LTD         ,650.46,Dec-21
EREWASH BOROUGH COUNCIL,6676,Building Control - Fee Earning,Agency Staff                  ,03-Dec-2021,REED SPECIALIST RECRUITMENT LTD         ,650.46,Dec-21
EREWASH BOROUGH COUNCIL,5880,Building Control - Fee Earning,Agency Staff                  ,05-Nov-2021,REED SPECIALIST RECRUITMENT LTD         ,667.85,Dec-21
EREWASH BOROUGH COUNCIL,6053,Building Control - Fee Earning,Agency Staff                  ,12-Nov-2021,REED SPECIALIST RECRUITMENT LTD         ,534.28,Dec-21
EREWASH BOROUGH COUNCIL,5789,Erewash Museum                ,Sanitary Services             ,05-Nov-2021,RENTOKIL INITIAL SERVICES LIMITED       ,11.97,Dec-21
EREWASH BOROUGH COUNCIL,5789,Civic Accommodation Ilkeston  ,Sanitary Services             ,05-Nov-2021,RENTOKIL INITIAL SERVICES LIMITED       ,48.12,Dec-21
EREWASH BOROUGH COUNCIL,5789,Long Eaton Market             ,Sanitary Services             ,05-Nov-2021,RENTOKIL INITIAL SERVICES LIMITED       ,1.46,Dec-21
EREWASH BOROUGH COUNCIL,5789,Civic Accommodation Long Eaton,Sanitary Services             ,05-Nov-2021,RENTOKIL INITIAL SERVICES LIMITED       ,78.32,Dec-21
EREWASH BOROUGH COUNCIL,5789,Merlin Way Depot              ,Sanitary Services             ,05-Nov-2021,RENTOKIL INITIAL SERVICES LIMITED       ,58.98,Dec-21
EREWASH BOROUGH COUNCIL,5789,Public Conveniences           ,Sanitary Services             ,05-Nov-2021,RENTOKIL INITIAL SERVICES LIMITED       ,142.40,Dec-21
EREWASH BOROUGH COUNCIL,5789,Shopmobility - Long Eaton     ,Sanitary Services             ,05-Nov-2021,RENTOKIL INITIAL SERVICES LIMITED       ,1.46,Dec-21
EREWASH BOROUGH COUNCIL,6431,Revenues and Benefits         ,Postages                      ,24-Nov-2021,ROYAL MAIL GROUP LTD.                   ,"1,115.00",Dec-21
EREWASH BOROUGH COUNCIL,6432,Communications                ,General Publicity and Promotio,01-Dec-2021,ROYAL MAIL GROUP LTD.                   ,"5,058.02",Dec-21
EREWASH BOROUGH COUNCIL,6051,Revenues and Benefits         ,Postages                      ,17-Nov-2021,ROYAL MAIL GROUP LTD.                   ,"1,605.74",Dec-21
EREWASH BOROUGH COUNCIL,5656,Revenues and Benefits         ,Postages                      ,05-Nov-2021,ROYAL MAIL GROUP LTD.                   ,341.67,Dec-21
EREWASH BOROUGH COUNCIL,5481,Revenues and Benefits         ,Postages                      ,03-Nov-2021,ROYAL MAIL GROUP LTD.                   ,"1,477.88",Dec-21
EREWASH BOROUGH COUNCIL,6020,Green Space                   ,Materials/Consumables         ,15-Nov-2021,RUSSELLS (KIRBYMOORSIDE) LIMITED        ,"3,450.00",Dec-21
EREWASH BOROUGH COUNCIL,6012,Street Scene                  ,Materials/Consumables         ,17-Nov-2021,SAFETY SIGNS & NOTICES                  ,673.65,Dec-21
EREWASH BOROUGH COUNCIL,5607,Green Space                   ,Materials/Consumables         ,04-Nov-2021,SAFETY SIGNS & NOTICES                  ,297.00,Dec-21
EREWASH BOROUGH COUNCIL,6899,Community Grants              ,Grants and Subscriptions      ,21-Dec-2021,SAWLEY YOUTH CLUB                       ,325.00,Dec-21
EREWASH BOROUGH COUNCIL,6472,Street Scene                  ,Repairs and Maintenance       ,19-Nov-2021,SCARAB SWEEPERS LTD                     ,363.75,Dec-21
EREWASH BOROUGH COUNCIL,6630,Licensing - Health Services   ,Veterinary Fees               ,29-Nov-2021,SCARSDALE VETS                          ,410.70,Dec-21
EREWASH BOROUGH COUNCIL,6634,Green Space                   ,Metered Water                 ,01-Dec-2021,SCOTTISH WATER BUSINESS STREAM LIMITED  ,"11,476.15",Dec-21
EREWASH BOROUGH COUNCIL,6634,Public Conveniences           ,Metered Water                 ,01-Dec-2021,SCOTTISH WATER BUSINESS STREAM LIMITED  ,646.10,Dec-21
EREWASH BOROUGH COUNCIL,6634,Merlin Way Depot              ,Metered Water                 ,01-Dec-2021,SCOTTISH WATER BUSINESS STREAM LIMITED  ,914.09,Dec-21
EREWASH BOROUGH COUNCIL,6634,Civic Accommodation Ilkeston  ,Metered Water                 ,01-Dec-2021,SCOTTISH WATER BUSINESS STREAM LIMITED  ,319.84,Dec-21
EREWASH BOROUGH COUNCIL,6634,Toll Bar House                ,Metered Water                 ,01-Dec-2021,SCOTTISH WATER BUSINESS STREAM LIMITED  ,891.78,Dec-21
EREWASH BOROUGH COUNCIL,6030,Street Scene                  ,Maintenance of Bus Shelters   ,19-Nov-2021,SHELTER MAINTENANCE CO                  ,"6,178.40",Dec-21
EREWASH BOROUGH COUNCIL,5357,Street Scene                  ,Maintenance of Bus Shelters   ,02-Nov-2021,SHELTER MAINTENANCE CO                  ,595.00,Dec-21
EREWASH BOROUGH COUNCIL,5995,ICT Support Services          ,Network Equipment & Cabling   ,16-Nov-2021,SOFTCAT LTD                             ,590.51,Dec-21
EREWASH BOROUGH COUNCIL,6059,Street Scene                  ,Contracted Services           ,20-Nov-2021,STANTON RECYCLING LIMITED               ,376.80,Dec-21
EREWASH BOROUGH COUNCIL,6374,Street Scene                  ,Contracted Services           ,30-Nov-2021,STANTON RECYCLING LIMITED               ,"1,080.80",Dec-21
EREWASH BOROUGH COUNCIL,5834,Street Scene                  ,Materials/Consumables         ,12-Nov-2021,STANTON RECYCLING LIMITED               ,328.00,Dec-21
EREWASH BOROUGH COUNCIL,5843,Pedestrian Zones - Ilk and LE ,Reactive Maintenance          ,12-Nov-2021,STEELCRAFT FABRICATIONS                 ,275.00,Dec-21
EREWASH BOROUGH COUNCIL,5851,Civic Accommodation Ilkeston  ,Planned Preventative Maintenan,12-Nov-2021,STEELCRAFT FABRICATIONS                 ,400.00,Dec-21
EREWASH BOROUGH COUNCIL,5992,Green Space                   ,Materials/Consumables         ,15-Nov-2021,STREETMASTER (SOUTH WALES) LTD          ,"1,652.00",Dec-21
EREWASH BOROUGH COUNCIL,5583,Pride In Erewash              ,Materials/Consumables         ,04-Nov-2021,REDACTED PERSONAL DATA,319.00,Dec-21
EREWASH BOROUGH COUNCIL,6401,Pride In Erewash              ,Materials/Consumables         ,29-Nov-2021,SUTCLIFFE PLAY LTD                      ,256.08,Dec-21
EREWASH BOROUGH COUNCIL,7041,Homelessness                  ,Homelessness-Lease Properties ,14-Dec-2021,D & N REMOVALS                          ,"1,500.00",Dec-21
EREWASH BOROUGH COUNCIL,6466,Trade Waste                   ,Repairs and Maintenance       ,22-Nov-2021,DENNIS EAGLE LTD                        ,250.42,Dec-21
EREWASH BOROUGH COUNCIL,6049,Kerbside Recycling Collection ,Repairs and Maintenance       ,22-Nov-2021,DENNIS EAGLE LTD                        ,269.75,Dec-21
EREWASH BOROUGH COUNCIL,6009,Kerbside Recycling Collection ,Repairs and Maintenance       ,19-Nov-2021,DENNIS EAGLE LTD                        ,916.41,Dec-21
EREWASH BOROUGH COUNCIL,6260,Household Waste Collection    ,Repairs and Maintenance       ,29-Nov-2021,DENNIS EAGLE LTD                        ,539.50,Dec-21
EREWASH BOROUGH COUNCIL,6476,Kerbside Recycling Collection ,Repairs and Maintenance       ,25-Nov-2021,DENNIS EAGLE LTD                        ,916.41,Dec-21
EREWASH BOROUGH COUNCIL,6224,Household Waste Collection    ,Repairs and Maintenance       ,24-Nov-2021,DENNIS EAGLE LTD                        ,431.06,Dec-21
EREWASH BOROUGH COUNCIL,6224,Household Waste Collection    ,Repairs and Maintenance       ,24-Nov-2021,DENNIS EAGLE LTD                        ,486.58,Dec-21
EREWASH BOROUGH COUNCIL,6594,Emergency Planning            ,Contracted Services           ,09-Dec-2021,DERBYSHIRE COUNTY COUNCIL...            ,932.00,Dec-21
EREWASH BOROUGH COUNCIL,6595,Emergency Planning            ,Contracted Services           ,09-Dec-2021,DERBYSHIRE COUNTY COUNCIL...            ,"15,756.00",Dec-21
EREWASH BOROUGH COUNCIL,6215,EBC Balance Sheet             ,Payroll Coll Acc Superanuation,17-Dec-2021,DERBYSHIRE COUNTY COUNCIL...            ,"121,094.27",Dec-21
EREWASH BOROUGH COUNCIL,6215,EBC Balance Sheet             ,Payroll Coll Acc Superanuation,17-Dec-2021,DERBYSHIRE COUNTY COUNCIL...            ,"83,250.00",Dec-21
EREWASH BOROUGH COUNCIL,6215,EBC Balance Sheet             ,Payroll Coll Acc - Added Years,17-Dec-2021,DERBYSHIRE COUNTY COUNCIL...            ,253.84,Dec-21
EREWASH BOROUGH COUNCIL,6827,Compensation and Pensions     ,Compensatory Added Years      ,15-Dec-2021,DERBYSHIRE COUNTY COUNCIL...            ,"18,568.59",Dec-21
EREWASH BOROUGH COUNCIL,7045,Environmental & Housing Serv  ,Disabled Facilities Grant     ,03-Nov-2021,DERBYSHIRE COUNTY COUNCIL...            ,"3,253.00",Dec-21
EREWASH BOROUGH COUNCIL,7046,Environmental & Housing Serv  ,Disabled Facilities Grant     ,26-Nov-2021,DERBYSHIRE COUNTY COUNCIL...            ,"5,768.07",Dec-21
EREWASH BOROUGH COUNCIL,7054,Environmental & Housing Serv  ,Disabled Facilities Grant     ,29-Oct-2021,DERBYSHIRE COUNTY COUNCIL...            ,"5,788.41",Dec-21
EREWASH BOROUGH COUNCIL,7044,Environmental & Housing Serv  ,Disabled Facilities Grant     ,27-Oct-2021,DERBYSHIRE COUNTY COUNCIL...            ,"5,826.62",Dec-21
EREWASH BOROUGH COUNCIL,6286,Emergency Planning            ,Contracted Services           ,30-Nov-2021,DERBYSHIRE COUNTY COUNCIL...            ,"16,386.00",Dec-21
EREWASH BOROUGH COUNCIL,6403,Environmental & Housing Serv  ,Disabled Facilities Grant     ,25-Oct-2021,DERBYSHIRE COUNTY COUNCIL...            ,"2,452.00",Dec-21
EREWASH BOROUGH COUNCIL,6406,Environmental & Housing Serv  ,Disabled Facilities Grant     ,28-Oct-2021,DERBYSHIRE COUNTY COUNCIL...            ,"2,485.00",Dec-21
EREWASH BOROUGH COUNCIL,6409,Environmental & Housing Serv  ,Disabled Facilities Grant     ,15-Mar-2021,DERBYSHIRE COUNTY COUNCIL...            ,"4,113.13",Dec-21
EREWASH BOROUGH COUNCIL,6405,Environmental & Housing Serv  ,Disabled Facilities Grant     ,22-Sep-2021,DERBYSHIRE COUNTY COUNCIL...            ,"4,843.75",Dec-21
EREWASH BOROUGH COUNCIL,6411,Environmental & Housing Serv  ,Disabled Facilities Grant     ,08-Oct-2021,DERBYSHIRE COUNTY COUNCIL...            ,"5,129.95",Dec-21
EREWASH BOROUGH COUNCIL,6407,Environmental & Housing Serv  ,Disabled Facilities Grant     ,12-Nov-2021,DERBYSHIRE COUNTY COUNCIL...            ,"5,414.55",Dec-21
EREWASH BOROUGH COUNCIL,6410,Environmental & Housing Serv  ,Disabled Facilities Grant     ,17-Nov-2021,DERBYSHIRE COUNTY COUNCIL...            ,"6,069.64",Dec-21
EREWASH BOROUGH COUNCIL,6404,Environmental & Housing Serv  ,Disabled Facilities Grant     ,09-Sep-2021,DERBYSHIRE COUNTY COUNCIL...            ,"29,865.30",Dec-21
EREWASH BOROUGH COUNCIL,5654,Planning                      ,External Property Works       ,03-Nov-2021,DILAPSOLUTIONS                          ,"1,850.00",Dec-21
EREWASH BOROUGH COUNCIL,6467,Personnel                     ,Legal Expenses                ,06-Dec-2021,DKD ASSOCIATES                          ,518.85,Dec-21
EREWASH BOROUGH COUNCIL,6680,Development Control           ,Consultants Fees              ,30-Nov-2021,DLP PLANNING LIMITED                    ,"7,948.50",Dec-21
EREWASH BOROUGH COUNCIL,6678,Development Control           ,Consultants Fees              ,02-Nov-2021,DLP PLANNING LIMITED                    ,"12,129.39",Dec-21
EREWASH BOROUGH COUNCIL,6400,Arts Development              ,Special Events                ,25-Nov-2021,DRUMATISED                              ,"1,470.00",Dec-21
EREWASH BOROUGH COUNCIL,6249,Christmas Lights              ,Reactive Maintenance          ,29-Nov-2021,E.ON UK ENERGY SERVICES                 ,275.00,Dec-21
EREWASH BOROUGH COUNCIL,6250,Car Parking                   ,Reactive Maintenance          ,29-Nov-2021,E.ON UK ENERGY SERVICES                 ,"1,399.78",Dec-21
EREWASH BOROUGH COUNCIL,6019,Household Waste Collection    ,Repairs and Maintenance       ,15-Nov-2021,EAST MIDLANDS HYDRAULICS                ,399.20,Dec-21
EREWASH BOROUGH COUNCIL,6279,Homelessness Prevention       ,Spend to Save                 ,01-Dec-2021,EAST MIDLANDS PROPERTY SERVICES LTD     ,"1,400.00",Dec-21
EREWASH BOROUGH COUNCIL,6874,Green Space                   ,Materials/Consumables         ,29-Oct-2021,EAST RIDING HORTICULTURE LTD            ,"1,523.87",Dec-21
EREWASH BOROUGH COUNCIL,6023,Parks Other Buildings         ,Bridge Repairs and Maintenance,22-Nov-2021,EASTWOOD & PARTNERS                     ,"1,500.00",Dec-21
EREWASH BOROUGH COUNCIL,6610,General Entertainment         ,Security                      ,28-Nov-2021,EFFECTIVE SECURITY SERVICES LTD         ,508.00,Dec-21
EREWASH BOROUGH COUNCIL,6610,General Entertainment         ,Security                      ,28-Nov-2021,EFFECTIVE SECURITY SERVICES LTD         ,716.00,Dec-21
EREWASH BOROUGH COUNCIL,6673,Fireworks Display             ,Security                      ,07-Nov-2021,EFFECTIVE SECURITY SERVICES LTD         ,"4,571.75",Dec-21
EREWASH BOROUGH COUNCIL,7068,Economic Development          ,Grants and Subscriptions      ,05-Oct-2021,EREWASH PARTNERSHIP LTD                 ,"19,625.00",Dec-21
EREWASH BOROUGH COUNCIL,6489,External Audit                ,Audit Fees                    ,02-Dec-2021,ERNST & YOUNG LLP.                      ,"17,826.00",Dec-21
EREWASH BOROUGH COUNCIL,5539,Development Control           ,Consultants Fees              ,07-Nov-2021,ESSEX COUNTY COUNCIL                    ,"5,700.00",Dec-21
EREWASH BOROUGH COUNCIL,5305,Green Space                   ,Contracted Services           ,30-Oct-2021,T H HEATH  CONTRACTS  LTD               ,"2,795.00",Dec-21
EREWASH BOROUGH COUNCIL,5306,Green Space                   ,Contracted Services           ,30-Oct-2021,T H HEATH  CONTRACTS  LTD               ,"5,707.59",Dec-21
EREWASH BOROUGH COUNCIL,5663,Fireworks Display             ,Materials/Consumables         ,09-Nov-2021,T H HEATH  CONTRACTS  LTD               ,342.00,Dec-21
EREWASH BOROUGH COUNCIL,6070,Property and Estates          ,Alarms Reactive Maintenance   ,23-Nov-2021,TECSERV UK                              ,464.70,Dec-21
EREWASH BOROUGH COUNCIL,5783,Toll Bar House                ,Alarms Planned Maintenence    ,12-Nov-2021,TECSERV UK                              ,320.00,Dec-21
EREWASH BOROUGH COUNCIL,6376,Environmental & Housing Serv  ,Vehicles                      ,02-Dec-2021,TERBERG MATEC UK                        ,368.15,Dec-21
EREWASH BOROUGH COUNCIL,6435,Household Waste Collection    ,Repairs and Maintenance       ,06-Dec-2021,TERBERG MATEC UK                        ,620.22,Dec-21
EREWASH BOROUGH COUNCIL,6375,Environmental & Housing Serv  ,Vehicles                      ,02-Dec-2021,TERBERG MATEC UK                        ,"166,671.64",Dec-21
EREWASH BOROUGH COUNCIL,6007,Transport Trading Account     ,Training                      ,05-Nov-2021,TERBERG MATEC UK                        ,"1,000.00",Dec-21
EREWASH BOROUGH COUNCIL,5983,Environmental & Housing Serv  ,Vehicles                      ,11-Nov-2021,TERBERG MATEC UK                        ,351.42,Dec-21
EREWASH BOROUGH COUNCIL,5887,Environmental & Housing Serv  ,Vehicles                      ,11-Nov-2021,TERBERG MATEC UK                        ,368.15,Dec-21
EREWASH BOROUGH COUNCIL,5888,Environmental & Housing Serv  ,Vehicles                      ,11-Nov-2021,TERBERG MATEC UK                        ,"166,671.64",Dec-21
EREWASH BOROUGH COUNCIL,5968,Environmental & Housing Serv  ,Vehicles                      ,11-Nov-2021,TERBERG MATEC UK                        ,"166,671.64",Dec-21
EREWASH BOROUGH COUNCIL,6823,Planning Policy               ,Maintenance of Equipment      ,08-Dec-2021,TETRA TECH LIMITED                      ,"5,000.00",Dec-21
EREWASH BOROUGH COUNCIL,6605,Legal Services                ,Reference Literature and Publi,01-Dec-2021,THOMSON REUTERS                         ,"13,572.00",Dec-21
EREWASH BOROUGH COUNCIL,6067,Merlin Way Depot              ,Electricity                   ,23-Nov-2021,TOTAL GAS & POWER LTD                   ,"1,846.06",Dec-21
EREWASH BOROUGH COUNCIL,6067,Civic Accommodation Long Eaton,Electricity                   ,23-Nov-2021,TOTAL GAS & POWER LTD                   ,"1,709.11",Dec-21
EREWASH BOROUGH COUNCIL,6067,Civic Accommodation Ilkeston  ,Electricity                   ,23-Nov-2021,TOTAL GAS & POWER LTD                   ,"1,371.35",Dec-21
EREWASH BOROUGH COUNCIL,6067,Sandiacre Friesland Sports Ctr,Electricity                   ,23-Nov-2021,TOTAL GAS & POWER LTD                   ,431.51,Dec-21
EREWASH BOROUGH COUNCIL,6067,Green Space                   ,Electricity                   ,23-Nov-2021,TOTAL GAS & POWER LTD                   ,975.68,Dec-21
EREWASH BOROUGH COUNCIL,6038,Civic Accommodation Long Eaton,Electricity                   ,18-Nov-2021,TOTAL GAS & POWER LTD                   ,"3,673.26",Dec-21
EREWASH BOROUGH COUNCIL,6038,Civic Accommodation Ilkeston  ,Electricity                   ,18-Nov-2021,TOTAL GAS & POWER LTD                   ,560.59,Dec-21
EREWASH BOROUGH COUNCIL,6038,Toll Bar House                ,Electricity                   ,18-Nov-2021,TOTAL GAS & POWER LTD                   ,819.89,Dec-21
EREWASH BOROUGH COUNCIL,6038,Erewash Museum                ,Electricity                   ,18-Nov-2021,TOTAL GAS & POWER LTD                   ,947.76,Dec-21
EREWASH BOROUGH COUNCIL,6038,Green Space                   ,Electricity                   ,18-Nov-2021,TOTAL GAS & POWER LTD                   ,"2,984.48",Dec-21
EREWASH BOROUGH COUNCIL,6038,Cemeteries                    ,Electricity                   ,18-Nov-2021,TOTAL GAS & POWER LTD                   ,"1,403.90",Dec-21
EREWASH BOROUGH COUNCIL,6038,Public Conveniences           ,Electricity                   ,18-Nov-2021,TOTAL GAS & POWER LTD                   ,665.70,Dec-21
EREWASH BOROUGH COUNCIL,6038,CCTV - Ilkeston and Long Eaton,Electricity                   ,18-Nov-2021,TOTAL GAS & POWER LTD                   ,363.95,Dec-21
EREWASH BOROUGH COUNCIL,6038,Ilkeston Market               ,Electricity                   ,18-Nov-2021,TOTAL GAS & POWER LTD                   ,524.45,Dec-21
EREWASH BOROUGH COUNCIL,6038,Car Parking                   ,Electricity                   ,18-Nov-2021,TOTAL GAS & POWER LTD                   ,747.21,Dec-21
EREWASH BOROUGH COUNCIL,6038,Green Space                   ,Electricity                   ,18-Nov-2021,TOTAL GAS & POWER LTD                   ,544.50,Dec-21
EREWASH BOROUGH COUNCIL,6068,Civic Accommodation Long Eaton,Gas                           ,16-Nov-2021,TOTAL GAS & POWER LTD                   ,565.76,Dec-21
EREWASH BOROUGH COUNCIL,6068,Civic Accommodation Ilkeston  ,Gas                           ,16-Nov-2021,TOTAL GAS & POWER LTD                   ,685.27,Dec-21
EREWASH BOROUGH COUNCIL,6648,Homelessness                  ,Temporary Accommodation       ,13-Dec-2021,TUDOR LODGE HOTEL                       ,320.84,Dec-21
EREWASH BOROUGH COUNCIL,6436,Homelessness                  ,Temporary Accommodation       ,07-Dec-2021,TUDOR LODGE HOTEL                       ,333.34,Dec-21
EREWASH BOROUGH COUNCIL,6873,Homelessness                  ,Homelessness-Lease Properties ,20-Dec-2021,TUNTUM HOUSING ASSOCIATION.             ,"1,238.25",Dec-21
EREWASH BOROUGH COUNCIL,5665,Household Waste Collection    ,Repairs and Maintenance       ,09-Nov-2021,VEHICLE WEIGHING SOLUTIONS              ,338.25,Dec-21
EREWASH BOROUGH COUNCIL,5823,Fireworks Display             ,Equipment for Hire            ,15-Nov-2021,VOCON TRAFFIC MANAGEMENT                ,430.00,Dec-21
EREWASH BOROUGH COUNCIL,6254,Communications                ,General Publicity and Promotio,26-Nov-2021,WALSTEAD PETERBOROUGH LTD               ,"5,856.94",Dec-21
EREWASH BOROUGH COUNCIL,7043,Ilkeston Charter Fair         ,Contracted Services           ,01-Dec-2021,WARD RECYCLING                          ,788.00,Dec-21
EREWASH BOROUGH COUNCIL,7040,Green Space                   ,Materials/Consumables         ,22-Dec-2021,WAYNE PEAPELL CONSULTANCY LTD           ,460.00,Dec-21
EREWASH BOROUGH COUNCIL,5774,Council Tax Collection        ,Fees Costs and Expenses       ,08-Nov-2021,WILKIN CHAPMAN LLP                      ,465.00,Dec-21
EREWASH BOROUGH COUNCIL,5595,Council Tax Collection        ,Fees Costs and Expenses       ,08-Nov-2021,WILKIN CHAPMAN LLP                      ,"3,908.90",Dec-21
EREWASH BOROUGH COUNCIL,6351,Household Waste Collection    ,Agency Staff                  ,27-Nov-2021,WORKCHAIN LTD                           ,"1,632.51",Dec-21
EREWASH BOROUGH COUNCIL,6578,Kerbside Recycling Collection ,Agency Staff                  ,04-Dec-2021,WORKCHAIN LTD                           ,"2,315.83",Dec-21
EREWASH BOROUGH COUNCIL,6193,Street Scene                  ,Agency Staff                  ,20-Nov-2021,WORKCHAIN LTD                           ,"1,723.83",Dec-21
EREWASH BOROUGH COUNCIL,5757,Household Waste Collection    ,Agency Staff                  ,06-Nov-2021,WORKCHAIN LTD                           ,"1,607.35",Dec-21
EREWASH BOROUGH COUNCIL,5969,Street Scene                  ,Agency Staff                  ,13-Nov-2021,WORKCHAIN LTD                           ,"2,298.44",Dec-21
EREWASH BOROUGH COUNCIL,6377,ICT Support Services          ,General Equipment             ,03-Dec-2021,XERETEC OFFICE SYSTEMS LTS              ,"3,834.00",Dec-21
EREWASH BOROUGH COUNCIL,6637,Erewash Museum                ,Special Events                ,04-Oct-2021,MORPLAN LIMITED                         ,308.00,Dec-21
EREWASH BOROUGH COUNCIL,6460,General Entertainment         ,Special Events                ,26-Nov-2021,REDACTED PERSONAL DATA,500.00,Dec-21
EREWASH BOROUGH COUNCIL,6460,General Entertainment         ,Special Events                ,26-Nov-2021,REDACTED PERSONAL DATA,600.00,Dec-21
EREWASH BOROUGH COUNCIL,6218,Property and Estates          ,Repairs and Maintenance       ,25-Nov-2021,NEP ENERGY SERVICES LTD                 ,375.00,Dec-21
EREWASH BOROUGH COUNCIL,5809,ICT Support Services          ,Security                      ,08-Nov-2021,NEXSTOR LTD                             ,"9,750.00",Dec-21
EREWASH BOROUGH COUNCIL,5623,Green Space                   ,Materials/Consumables         ,09-Nov-2021,NIBRA SIGNS LTD                         ,283.40,Dec-21
EREWASH BOROUGH COUNCIL,5624,Play Areas                    ,Materials/Consumables         ,09-Nov-2021,NIBRA SIGNS LTD                         ,681.68,Dec-21
EREWASH BOROUGH COUNCIL,6284,Pride In Erewash              ,Materials/Consumables         ,16-Nov-2021,NOVA SPORT LTD                          ,"2,418.00",Dec-21
EREWASH BOROUGH COUNCIL,5756,Infec Disease & Food Poisoning,Fees Costs and Expenses       ,10-Nov-2021,OSBORNE RICHARDSON                      ,315.00,Dec-21
EREWASH BOROUGH COUNCIL,6357,Infec Disease & Food Poisoning,Fees Costs and Expenses       ,01-Dec-2021,OSBORNE RICHARDSON                      ,414.00,Dec-21
EREWASH BOROUGH COUNCIL,6500,Commissioned Projects         ,Miscellaneous Grants          ,15-Nov-2021,PARKSIDE HIGH CIC                       ,"5,006.00",Dec-21
EREWASH BOROUGH COUNCIL,6288,Leisure Services              ,Project Grants                ,20-Nov-2021,PARKWOOD LEISURE LTD                    ,"24,603.00",Dec-21
EREWASH BOROUGH COUNCIL,6464,Neighbourhood Wardens         ,Repairs and Maintenance       ,04-Dec-2021,PARTSPLUS                               ,299.02,Dec-21
EREWASH BOROUGH COUNCIL,6496,Community Grants              ,Project Grants                ,08-Dec-2021,WEST HALLAM CENTRE & RECREATION         ,"1,000.00",Dec-21
EREWASH BOROUGH COUNCIL,7037,Licensing - Health Services   ,Hygiene Licence               ,23-Dec-2021,REDACTED PERSONAL DATA,410.00,Dec-21
EREWASH BOROUGH COUNCIL,6462,Community Grants              ,Grants and Subscriptions      ,08-Dec-2021,DRAYCOTT VILLAGE FUND                   ,500.00,Dec-21
EREWASH BOROUGH COUNCIL,6491,Community Grants              ,Project Grants                ,08-Dec-2021,FRIENDS OF BENNERLEY VIADUCT            ,456.00,Dec-21
EREWASH BOROUGH COUNCIL,6492,Community Grants              ,Project Grants                ,08-Dec-2021,HELPING HOOVES DERBYSHIRE CIC           ,375.00,Dec-21
EREWASH BOROUGH COUNCIL,6493,Community Grants              ,Project Grants                ,08-Dec-2021,WESTFIELD PRESCHOOL CIC                 ,500.00,Dec-21
EREWASH BOROUGH COUNCIL,6495,Community Grants              ,Project Grants                ,08-Dec-2021,LONG EATON TOWN BOWLING CLUB LTD        ,870.00,Dec-21
EREWASH BOROUGH COUNCIL,6496,Community Grants              ,Project Grants                ,08-Dec-2021,WEST HALLAM CENTRE & RECREATION         ,"1,000.00",Dec-21
EREWASH BOROUGH COUNCIL,6497,Community Grants              ,Project Grants                ,08-Dec-2021,THE COMMUNITY PRE-SCHOOL                ,340.00,Dec-21
EREWASH BOROUGH COUNCIL,6498,Community Grants              ,Project Grants                ,08-Dec-2021,LONG EATON SEA CADETS                   ,825.00,Dec-21
EREWASH BOROUGH COUNCIL,6499,Community Grants              ,Project Grants                ,08-Dec-2021,LONG EATON AIR CADETS                   ,780.00,Dec-21
EREWASH BOROUGH COUNCIL,5819,Kerbside Recycling Collection ,Repairs and Maintenance       ,10-Nov-2021,PB AUTO ELECTRICS                       ,280.38,Dec-21
EREWASH BOROUGH COUNCIL,5820,Household Waste Collection    ,Repairs and Maintenance       ,10-Nov-2021,PB AUTO ELECTRICS                       ,280.38,Dec-21
EREWASH BOROUGH COUNCIL,6416,General Entertainment         ,Special Events                ,29-Nov-2021,PB FIRE LTD                             ,300.00,Dec-21
EREWASH BOROUGH COUNCIL,6416,General Entertainment         ,Equipment for Hire            ,29-Nov-2021,PB FIRE LTD                             ,300.00,Dec-21
EREWASH BOROUGH COUNCIL,6415,General Entertainment         ,Special Events                ,29-Nov-2021,PB FIRE LTD                             ,630.00,Dec-21
EREWASH BOROUGH COUNCIL,6010,Fireworks Display             ,Equipment for Hire            ,21-Nov-2021,PB FIRE LTD                             ,350.00,Dec-21
EREWASH BOROUGH COUNCIL,6043,Civic Duties Hospitality      ,Remembrance Services          ,21-Nov-2021,PB FIRE LTD                             ,970.00,Dec-21
EREWASH BOROUGH COUNCIL,5876,Property and Estates          ,Repairs and Maintenance       ,16-Nov-2021,PEEL ELECTRICAL LTD                     ,444.94,Dec-21
EREWASH BOROUGH COUNCIL,6014,Car Parking                   ,Reactive Maintenance          ,18-Nov-2021,PEEL ELECTRICAL LTD                     ,520.17,Dec-21
EREWASH BOROUGH COUNCIL,6015,Car Parking                   ,Reactive Maintenance          ,18-Nov-2021,PEEL ELECTRICAL LTD                     ,"1,937.00",Dec-21
EREWASH BOROUGH COUNCIL,5373,Car Parking                   ,Reactive Maintenance          ,03-Nov-2021,PEEL ELECTRICAL LTD                     ,467.14,Dec-21
EREWASH BOROUGH COUNCIL,5862,Property and Estates          ,Repairs and Maintenance       ,16-Nov-2021,PEEL ELECTRICAL LTD                     ,357.78,Dec-21
EREWASH BOROUGH COUNCIL,6285,,,29-Nov-2021,PENHAM EXCEL LIMITED                    ,400.88,Dec-21
EREWASH BOROUGH COUNCIL,6228,Development Control           ,Software Licences             ,25-Nov-2021,PHOENIX SOFTWARE LTD                    ,939.70,Dec-21
EREWASH BOROUGH COUNCIL,6393,Erewash Museum                ,Special Events                ,30-Nov-2021,PICTORIAL LTD                           ,950.00,Dec-21
EREWASH BOROUGH COUNCIL,6213,Arts Development              ,Special Events                ,25-Jun-2021,PICTORIAL LTD                           ,500.00,Dec-21
EREWASH BOROUGH COUNCIL,6079,Pride In Erewash              ,Materials/Consumables         ,23-Nov-2021,PLAYDALE PLAYGROUNDS LTD                ,288.88,Dec-21
EREWASH BOROUGH COUNCIL,6378,Household Waste Collection    ,Personal Protective Equipment ,30-Nov-2021,PROTECTIVE WEAR SUPPLIES LTD            ,96.94,Dec-21
EREWASH BOROUGH COUNCIL,6378,Pride In Erewash              ,Spend to Save                 ,30-Nov-2021,PROTECTIVE WEAR SUPPLIES LTD            ,998.22,Dec-21
EREWASH BOROUGH COUNCIL,5810,Green Space                   ,Materials/Consumables         ,10-Nov-2021,PROTECTIVE WEAR SUPPLIES LTD            ,372.69,Dec-21
EREWASH BOROUGH COUNCIL,6661,Economic Development          ,Contracted Services           ,01-Dec-2021,PROXIMITY FUTURES T/A ELEPHANT WIFI     ,303.33,Dec-21
EREWASH BOROUGH COUNCIL,6434,General Entertainment         ,Special Events                ,03-Dec-2021,B&B AUDIO                               ,"1,425.00",Dec-21
EREWASH BOROUGH COUNCIL,6434,General Entertainment         ,Special Events                ,03-Dec-2021,B&B AUDIO                               ,"1,425.00",Dec-21
EREWASH BOROUGH COUNCIL,5869,Fireworks Display             ,Equipment for Hire            ,15-Nov-2021,B&B AUDIO                               ,920.00,Dec-21
EREWASH BOROUGH COUNCIL,5858,Civic Duties Hospitality      ,Remembrance Services          ,15-Nov-2021,B&B AUDIO                               ,"1,130.00",Dec-21
EREWASH BOROUGH COUNCIL,6694,Trees Hedges Local Nature Res ,Contracted Services           ,13-Dec-2021,BEECHWOOD TREES AND LANDSCAPLES LTD     ,"2,590.00",Dec-21
EREWASH BOROUGH COUNCIL,5816,Fireworks Display             ,Equipment for Hire            ,10-Nov-2021,BRANDON HIRE STATION                    ,511.72,Dec-21
EREWASH BOROUGH COUNCIL,5816,Fireworks Display             ,Materials/Consumables         ,10-Nov-2021,BRANDON HIRE STATION                    ,256.63,Dec-21
EREWASH BOROUGH COUNCIL,5815,Fireworks Display             ,Special Events                ,10-Nov-2021,BRANDON HIRE STATION                    ,"1,675.00",Dec-21
EREWASH BOROUGH COUNCIL,6629,Contaminated Land             ,Site Investigations           ,17-Nov-2021,BRITISH GEOLOGICAL SURVEY               ,275.57,Dec-21
EREWASH BOROUGH COUNCIL,6220,ICT Support Services          ,Telephones                    ,22-Nov-2021,BRITISH TELECOMMUNICATIONS PLC          ,"1,676.01",Dec-21
EREWASH BOROUGH COUNCIL,6886,Planning                      ,External Property Works       ,29-Nov-2021,BROWNE JACOBSON                         ,"1,059.50",Dec-21
EREWASH BOROUGH COUNCIL,6885,Planning                      ,External Property Works       ,29-Nov-2021,BROWNE JACOBSON                         ,"2,224.00",Dec-21
EREWASH BOROUGH COUNCIL,6074,Green Space                   ,Materials/Consumables         ,23-Nov-2021,BROXAP LIMITED                          ,349.00,Dec-21
EREWASH BOROUGH COUNCIL,6016,Street Scene                  ,Bins                          ,19-Nov-2021,BROXAP LIMITED                          ,"4,446.68",Dec-21
EREWASH BOROUGH COUNCIL,6365,Urban Renewal                 ,Agency Staff                  ,01-Dec-2021,BUCKINGHAM FUTURES LIMITED              ,"1,235.33",Dec-21
EREWASH BOROUGH COUNCIL,6211,Urban Renewal                 ,Agency Staff                  ,24-Nov-2021,BUCKINGHAM FUTURES LIMITED              ,"1,258.00",Dec-21
EREWASH BOROUGH COUNCIL,5973,Urban Renewal                 ,Agency Staff                  ,17-Nov-2021,BUCKINGHAM FUTURES LIMITED              ,"1,258.00",Dec-21
EREWASH BOROUGH COUNCIL,5780,Homelessness                  ,Contracted Services           ,10-Nov-2021,BUCKINGHAM FUTURES LIMITED              ,"1,259.13",Dec-21
EREWASH BOROUGH COUNCIL,6280,Occupational Health & Welfare ,Occupational Health Service   ,01-Dec-2021,BUPA HEALTH CLINICS                     ,418.55,Dec-21
EREWASH BOROUGH COUNCIL,6001,Household Waste Collection    ,Repairs and Maintenance       ,19-Nov-2021,BURROWS RECOVERY                        ,310.00,Dec-21
EREWASH BOROUGH COUNCIL,6839,Treasury and Bank Charges     ,Credit/Debit Card Charges     ,09-Dec-2021,CAPITA                                  ,"4,813.60",Dec-21
EREWASH BOROUGH COUNCIL,6662,Planning                      ,External Property Works       ,01-Nov-2021,CBRE LIMITED                            ,"5,000.00",Dec-21
EREWASH BOROUGH COUNCIL,5511,ICT Support Services          ,General Equipment             ,03-Nov-2021,CCS MEDIA LIMITED                       ,"1,276.24",Dec-21
EREWASH BOROUGH COUNCIL,5813,Transport Trading Account     ,Fuel                          ,13-Jul-2020,CERTAS ENERGY UK LIMITED T/A CARLTON FUE,"26,769.00",Dec-21
EREWASH BOROUGH COUNCIL,5814,EBC Balance Sheet             ,Fuel Store                    ,08-Nov-2021,CERTAS ENERGY UK LIMITED T/A CARLTON FUE,"35,015.84",Dec-21
EREWASH BOROUGH COUNCIL,6399,Housing Benefit Administration,Project Grants                ,06-Dec-2021,CIVICA UK LIMITED                       ,519.86,Dec-21
EREWASH BOROUGH COUNCIL,6283,Revenues and Benefits         ,Software Licences             ,30-Nov-2021,CIVICA UK LIMITED                       ,"3,000.00",Dec-21
EREWASH BOROUGH COUNCIL,6642,ICT Support Services          ,Mobile Phones                 ,01-Dec-2021,CLASS AFFINITY PROJECTS LTD             ,"2,475.63",Dec-21
EREWASH BOROUGH COUNCIL,6217,Trees Hedges Local Nature Res ,Contracted Services           ,13-Nov-2021,CLEARWATER POND & LAKE MANAGEMENT       ,"3,581.30",Dec-21
EREWASH BOROUGH COUNCIL,6388,Property and Estates          ,Repairs and Maintenance       ,30-Nov-2021,CONCEPT ELEVATORS (UK) LTD              ,385.00,Dec-21
EREWASH BOROUGH COUNCIL,5504,Property and Estates          ,Repairs and Maintenance       ,02-Nov-2021,CONCEPT ELEVATORS (UK) LTD              ,979.55,Dec-21
EREWASH BOROUGH COUNCIL,6875,Civic Duties Hospitality      ,Remembrance Services          ,30-Nov-2021,CONTROLLED EVENT SOLUTIONS              ,"1,044.00",Dec-21
EREWASH BOROUGH COUNCIL,6235,Commissioned Projects         ,Fees Costs and Expenses       ,21-Oct-2021,COTMANHAY COMMUNITY NETWORK             ,500.00,Dec-21
EREWASH BOROUGH COUNCIL,6258,Green Space                   ,Materials/Consumables         ,29-Nov-2021,CROMWELL POLYTHENE LTD                  ,"1,373.40",Dec-21
EREWASH BOROUGH COUNCIL,5659,Public Conveniences           ,Materials/Consumables         ,09-Nov-2021,CROMWELL POLYTHENE LTD                  ,"1,411.20",Dec-21
EREWASH BOROUGH COUNCIL,6946,Civic Transport               ,Hire Charges                  ,22-Dec-2021,CRUISE-IN-CONTROL LIMITED               ,"1,187.80",Dec-21
EREWASH BOROUGH COUNCIL,6265,Civic Transport               ,Hire Charges                  ,01-Dec-2021,CRUISE-IN-CONTROL LIMITED               ,"1,000.00",Dec-21
EREWASH BOROUGH COUNCIL,6265,Civic Transport               ,Hire Charges                  ,01-Dec-2021,CRUISE-IN-CONTROL LIMITED               ,"1,137.40",Dec-21
EREWASH BOROUGH COUNCIL,6219,Legal Services                ,"Stamp Duty,Search and Legal Fe",18-Nov-2021,CUSHMAN & WAKEFIELD DEBENHAM TIE LEUNG  ,"5,000.00",Dec-21
EREWASH BOROUGH COUNCIL,5546,Street Scene                  ,Repairs and Maintenance       ,08-Nov-2021,EUROTRUCK MIDLANDS LTD                  ,264.00,Dec-21
EREWASH BOROUGH COUNCIL,6598,Street Scene                  ,Agency Staff                  ,29-Nov-2021,EXTRA PERSONNEL LTD                     ,550.56,Dec-21
EREWASH BOROUGH COUNCIL,6597,Street Scene                  ,Agency Staff                  ,29-Nov-2021,EXTRA PERSONNEL LTD                     ,876.75,Dec-21
EREWASH BOROUGH COUNCIL,6599,Green Space                   ,Agency Staff                  ,29-Nov-2021,EXTRA PERSONNEL LTD                     ,"1,796.54",Dec-21
EREWASH BOROUGH COUNCIL,6599,Street Scene                  ,Agency Staff                  ,29-Nov-2021,EXTRA PERSONNEL LTD                     ,"1,796.54",Dec-21
EREWASH BOROUGH COUNCIL,6600,Green Space                   ,Agency Staff                  ,29-Nov-2021,EXTRA PERSONNEL LTD                     ,"1,936.09",Dec-21
EREWASH BOROUGH COUNCIL,6600,Street Scene                  ,Agency Staff                  ,29-Nov-2021,EXTRA PERSONNEL LTD                     ,"1,936.09",Dec-21
EREWASH BOROUGH COUNCIL,6389,Street Scene                  ,Agency Staff                  ,22-Nov-2021,EXTRA PERSONNEL LTD                     ,550.56,Dec-21
EREWASH BOROUGH COUNCIL,6379,Street Scene                  ,Agency Staff                  ,22-Nov-2021,EXTRA PERSONNEL LTD                     ,876.75,Dec-21
EREWASH BOROUGH COUNCIL,6391,Green Space                   ,Agency Staff                  ,22-Nov-2021,EXTRA PERSONNEL LTD                     ,"1,690.47",Dec-21
EREWASH BOROUGH COUNCIL,6391,Street Scene                  ,Agency Staff                  ,22-Nov-2021,EXTRA PERSONNEL LTD                     ,"1,690.47",Dec-21
EREWASH BOROUGH COUNCIL,6390,Green Space                   ,Agency Staff                  ,22-Nov-2021,EXTRA PERSONNEL LTD                     ,"2,126.21",Dec-21
EREWASH BOROUGH COUNCIL,6390,Street Scene                  ,Agency Staff                  ,22-Nov-2021,EXTRA PERSONNEL LTD                     ,"2,126.20",Dec-21
EREWASH BOROUGH COUNCIL,6392,Household Waste Collection    ,Agency Staff                  ,22-Nov-2021,EXTRA PERSONNEL LTD                     ,"10,215.78",Dec-21
EREWASH BOROUGH COUNCIL,6869,Street Scene                  ,Agency Staff                  ,06-Dec-2021,EXTRA PERSONNEL LTD                     ,550.56,Dec-21
EREWASH BOROUGH COUNCIL,6871,Street Scene                  ,Agency Staff                  ,06-Dec-2021,EXTRA PERSONNEL LTD                     ,876.75,Dec-21
EREWASH BOROUGH COUNCIL,6870,Green Space                   ,Agency Staff                  ,06-Dec-2021,EXTRA PERSONNEL LTD                     ,"1,634.36",Dec-21
EREWASH BOROUGH COUNCIL,6870,Street Scene                  ,Agency Staff                  ,06-Dec-2021,EXTRA PERSONNEL LTD                     ,"1,634.35",Dec-21
EREWASH BOROUGH COUNCIL,6867,Green Space                   ,Agency Staff                  ,06-Dec-2021,EXTRA PERSONNEL LTD                     ,"1,851.81",Dec-21
EREWASH BOROUGH COUNCIL,6867,Street Scene                  ,Agency Staff                  ,06-Dec-2021,EXTRA PERSONNEL LTD                     ,"1,851.81",Dec-21
EREWASH BOROUGH COUNCIL,6027,Green Space                   ,Agency Staff                  ,08-Nov-2021,EXTRA PERSONNEL LTD                     ,137.36,Dec-21
EREWASH BOROUGH COUNCIL,6027,Street Scene                  ,Agency Staff                  ,08-Nov-2021,EXTRA PERSONNEL LTD                     ,137.36,Dec-21
EREWASH BOROUGH COUNCIL,6025,Street Scene                  ,Agency Staff                  ,08-Nov-2021,EXTRA PERSONNEL LTD                     ,550.56,Dec-21
EREWASH BOROUGH COUNCIL,5985,Street Scene                  ,Agency Staff                  ,08-Nov-2021,EXTRA PERSONNEL LTD                     ,748.16,Dec-21
EREWASH BOROUGH COUNCIL,6028,Green Space                   ,Agency Staff                  ,08-Nov-2021,EXTRA PERSONNEL LTD                     ,"1,900.95",Dec-21
EREWASH BOROUGH COUNCIL,6028,Street Scene                  ,Agency Staff                  ,08-Nov-2021,EXTRA PERSONNEL LTD                     ,"1,900.95",Dec-21
EREWASH BOROUGH COUNCIL,6024,Green Space                   ,Agency Staff                  ,08-Nov-2021,EXTRA PERSONNEL LTD                     ,"2,109.53",Dec-21
EREWASH BOROUGH COUNCIL,6024,Street Scene                  ,Agency Staff                  ,08-Nov-2021,EXTRA PERSONNEL LTD                     ,"2,109.53",Dec-21
EREWASH BOROUGH COUNCIL,6026,Street Scene                  ,Agency Staff                  ,08-Nov-2021,EXTRA PERSONNEL LTD                     ,"10,446.63",Dec-21
EREWASH BOROUGH COUNCIL,6207,Street Scene                  ,Agency Staff                  ,15-Nov-2021,EXTRA PERSONNEL LTD                     ,550.56,Dec-21
EREWASH BOROUGH COUNCIL,6206,Street Scene                  ,Agency Staff                  ,15-Nov-2021,EXTRA PERSONNEL LTD                     ,888.44,Dec-21
EREWASH BOROUGH COUNCIL,6208,Street Scene                  ,Agency Staff                  ,15-Nov-2021,EXTRA PERSONNEL LTD                     ,"1,571.95",Dec-21
EREWASH BOROUGH COUNCIL,6208,Green Space                   ,Agency Staff                  ,15-Nov-2021,EXTRA PERSONNEL LTD                     ,"1,571.95",Dec-21
EREWASH BOROUGH COUNCIL,6210,Green Space                   ,Agency Staff                  ,15-Nov-2021,EXTRA PERSONNEL LTD                     ,"2,043.12",Dec-21
EREWASH BOROUGH COUNCIL,6210,Street Scene                  ,Agency Staff                  ,15-Nov-2021,EXTRA PERSONNEL LTD                     ,"2,043.12",Dec-21
EREWASH BOROUGH COUNCIL,6209,Street Scene                  ,Agency Staff                  ,15-Nov-2021,EXTRA PERSONNEL LTD                     ,"10,226.88",Dec-21
EREWASH BOROUGH COUNCIL,6256,Accountancy                   ,Reference Literature and Publi,17-Nov-2021,FINANCIAL REPORTING COUNCIL             ,391.00,Dec-21
EREWASH BOROUGH COUNCIL,6918,Fireworks Display             ,Special Events                ,01-Oct-2021,FIREMAGIC (UK) LTD                      ,"3,550.00",Dec-21
EREWASH BOROUGH COUNCIL,6240,Revenues and Benefits         ,Postages                      ,29-Nov-2021,FRAMA UK LIMITED                        ,"5,000.00",Dec-21
EREWASH BOROUGH COUNCIL,6268,Pride In Erewash              ,Materials/Consumables         ,20-Nov-2021,FRANK P MATTHEWS LTD                    ,"3,103.31",Dec-21
EREWASH BOROUGH COUNCIL,6268,Street Scene                  ,Materials/Consumables         ,20-Nov-2021,FRANK P MATTHEWS LTD                    ,489.49,Dec-21
EREWASH BOROUGH COUNCIL,6719,Kerbside Recycling Collection ,Waste Disposal                ,30-Nov-2021,GAE SMITH HOLDINGS T/A CASEPAK          ,"9,449.03",Dec-21
EREWASH BOROUGH COUNCIL,5629,Kerbside Recycling Collection ,Waste Disposal                ,31-Oct-2021,GAE SMITH HOLDINGS T/A CASEPAK          ,"9,628.35",Dec-21
EREWASH BOROUGH COUNCIL,6667,Homelessness                  ,Temporary Accommodation       ,13-Dec-2021,GLOBAL VILLAGE HOTEL & RESORTS LTD      ,300.00,Dec-21
EREWASH BOROUGH COUNCIL,6475,Pride In Erewash              ,Spend to Save                 ,24-Nov-2021,HAGSSMP                                 ,600.00,Dec-21
EREWASH BOROUGH COUNCIL,6917,Play Areas                    ,Materials/Consumables         ,24-Nov-2021,HAGSSMP                                 ,"1,652.00",Dec-21
EREWASH BOROUGH COUNCIL,6385,Play Areas                    ,Materials/Consumables         ,18-Nov-2021,HAGSSMP                                 ,378.09,Dec-21
EREWASH BOROUGH COUNCIL,6032,Trees Hedges Local Nature Res ,Materials/Consumables         ,17-Nov-2021,HILLIER NURSERIES LTD                   ,"4,000.00",Dec-21
EREWASH BOROUGH COUNCIL,7164,Council Tax Collection        ,Fees Costs and Expenses       ,01-Dec-2021,HM COURTS & TRIBUNALS SERVICE           ,497.00,Dec-21
EREWASH BOROUGH COUNCIL,6201,EBC Balance Sheet             ,Payroll Coll Acc - Income Tax ,20-Dec-2021,HMRC CUMBERNAULD                        ,"65,524.76",Dec-21
EREWASH BOROUGH COUNCIL,6201,EBC Balance Sheet             ,Payroll Coll Acc Student Loan ,20-Dec-2021,HMRC CUMBERNAULD                        ,"1,109.00",Dec-21
EREWASH BOROUGH COUNCIL,6201,EBC Balance Sheet             ,Payroll Coll Acc National Ins ,20-Dec-2021,HMRC CUMBERNAULD                        ,"100,538.11",Dec-21
EREWASH BOROUGH COUNCIL,6201,EBC Balance Sheet             ,Apprenticeship Levy           ,20-Dec-2021,HMRC CUMBERNAULD                        ,"1,988.00",Dec-21
EREWASH BOROUGH COUNCIL,6201,EBC Balance Sheet             ,Apprenticeship Levy           ,20-Dec-2021,HMRC CUMBERNAULD                        ,"1,250.00",Dec-21
EREWASH BOROUGH COUNCIL,6199,EBC Balance Sheet             ,Payroll Coll Acc - Income Tax ,20-Dec-2021,HMRC CUMBERNAULD                        ,475.60,Dec-21
EREWASH BOROUGH COUNCIL,6199,EBC Balance Sheet             ,Payroll Coll Acc National Ins ,20-Dec-2021,HMRC CUMBERNAULD                        ,588.65,Dec-21
EREWASH BOROUGH COUNCIL,6477,Street Scene                  ,Repairs and Maintenance       ,26-Nov-2021,HYDROBLAST LIMITED                      ,"2,836.50",Dec-21
EREWASH BOROUGH COUNCIL,6477,Street Scene                  ,Repairs and Maintenance       ,26-Nov-2021,HYDROBLAST LIMITED                      ,507.09,Dec-21
EREWASH BOROUGH COUNCIL,6354,Environmental & Housing Serv  ,Vehicles                      ,30-Nov-2021,AEBI SCHMIDT UK LTD                     ,"11,498.00",Dec-21
EREWASH BOROUGH COUNCIL,6353,Environmental & Housing Serv  ,Vehicles                      ,30-Nov-2021,AEBI SCHMIDT UK LTD                     ,"75,834.00",Dec-21
EREWASH BOROUGH COUNCIL,5581,Green Space                   ,Repairs and Maintenance       ,02-Nov-2021,ALFA TAIL LIFTS LTD                     ,416.97,Dec-21
EREWASH BOROUGH COUNCIL,6003,Fireworks Display             ,Equipment for Hire            ,09-Nov-2021,ALPHA DRAIN SERVICES                    ,400.00,Dec-21
EREWASH BOROUGH COUNCIL,5970,Property and Estates          ,Reactive Maintenance          ,17-Nov-2021,ALPHA PARTNER (MIDLANDS)  LIMITED       ,441.00,Dec-21
EREWASH BOROUGH COUNCIL,5883,Property and Estates          ,Reactive Maintenance          ,16-Nov-2021,ALPHA PARTNER (MIDLANDS)  LIMITED       ,530.00,Dec-21
EREWASH BOROUGH COUNCIL,5354,Property and Estates          ,Reactive Maintenance          ,02-Nov-2021,ALPHA PARTNER (MIDLANDS)  LIMITED       ,892.60,Dec-21
EREWASH BOROUGH COUNCIL,5353,Property and Estates          ,Reactive Maintenance          ,02-Nov-2021,ALPHA PARTNER (MIDLANDS)  LIMITED       ,"1,360.40",Dec-21
EREWASH BOROUGH COUNCIL,5517,Property and Estates          ,Reactive Maintenance          ,04-Nov-2021,ALPHA PARTNER (MIDLANDS)  LIMITED       ,"3,705.00",Dec-21
EREWASH BOROUGH COUNCIL,5850,Rutland Sports Park           ,Planned Preventative Maintenan,15-Nov-2021,ALPHA PARTNER (MIDLANDS)  LIMITED       ,330.00,Dec-21
EREWASH BOROUGH COUNCIL,5847,Property and Estates          ,Reactive Maintenance          ,15-Nov-2021,ALPHA PARTNER (MIDLANDS)  LIMITED       ,845.00,Dec-21
EREWASH BOROUGH COUNCIL,5848,Property and Estates          ,Reactive Maintenance          ,15-Nov-2021,ALPHA PARTNER (MIDLANDS)  LIMITED       ,"1,621.51",Dec-21
EREWASH BOROUGH COUNCIL,6402,ICT Support Services          ,Office Paper                  ,01-Dec-2021,ANTALIS DOCUMENT SUPPLIES               ,293.50,Dec-21
EREWASH BOROUGH COUNCIL,6470,Household Waste Collection    ,Repairs and Maintenance       ,16-Nov-2021,AQUA CLEAN                              ,70.75,Dec-21
EREWASH BOROUGH COUNCIL,6470,Trade Waste                   ,Repairs and Maintenance       ,16-Nov-2021,AQUA CLEAN                              ,70.75,Dec-21
EREWASH BOROUGH COUNCIL,6470,Kerbside Recycling Collection ,Repairs and Maintenance       ,16-Nov-2021,AQUA CLEAN                              ,70.74,Dec-21
EREWASH BOROUGH COUNCIL,6470,Street Scene                  ,Repairs and Maintenance       ,16-Nov-2021,AQUA CLEAN                              ,70.74,Dec-21
EREWASH BOROUGH COUNCIL,6470,Green Space                   ,Repairs and Maintenance       ,16-Nov-2021,AQUA CLEAN                              ,70.74,Dec-21
EREWASH BOROUGH COUNCIL,6470,Dog Control                   ,Repairs and Maintenance       ,16-Nov-2021,AQUA CLEAN                              ,70.74,Dec-21
EREWASH BOROUGH COUNCIL,6470,Neighbourhood Wardens         ,Repairs and Maintenance       ,16-Nov-2021,AQUA CLEAN                              ,70.74,Dec-21
EREWASH BOROUGH COUNCIL,6367,Trade Waste                   ,Trade Waste                   ,02-Dec-2021,ARENA COMMUNITY                         ,496.56,Dec-21
EREWASH BOROUGH COUNCIL,6622,Infec Disease & Food Poisoning,Work In Default               ,29-Oct-2021,AW LYMN LTD                             ,"1,430.00",Dec-21
EREWASH BOROUGH COUNCIL,6933,Street Scene                  ,Contracted Services           ,18-Dec-2021,LARCH GROUNDWORK LTD                    ,640.00,Dec-21
EREWASH BOROUGH COUNCIL,5493,Commissioned Projects         ,Fees Costs and Expenses       ,05-Nov-2021,LCS CONTAINER SERVICES                  ,"3,450.00",Dec-21
EREWASH BOROUGH COUNCIL,6423,Christmas Lights              ,Planned Preventative Maintenan,01-Dec-2021,LEISURE LITES LIMTED                    ,"10,000.00",Dec-21
EREWASH BOROUGH COUNCIL,6463,Household Waste Collection    ,Tyres                         ,30-Nov-2021,LODGE TYRE COMPANY LTD                  ,"2,566.88",Dec-21
EREWASH BOROUGH COUNCIL,6463,Trade Waste                   ,Tyres                         ,30-Nov-2021,LODGE TYRE COMPANY LTD                  ,70.00,Dec-21
EREWASH BOROUGH COUNCIL,6463,Kerbside Recycling Collection ,Tyres                         ,30-Nov-2021,LODGE TYRE COMPANY LTD                  ,65.00,Dec-21
EREWASH BOROUGH COUNCIL,6463,Street Scene                  ,Tyres                         ,30-Nov-2021,LODGE TYRE COMPANY LTD                  ,803.44,Dec-21
EREWASH BOROUGH COUNCIL,6463,Green Space                   ,Tyres                         ,30-Nov-2021,LODGE TYRE COMPANY LTD                  ,425.20,Dec-21
EREWASH BOROUGH COUNCIL,6463,Neighbourhood Wardens         ,Tyres                         ,30-Nov-2021,LODGE TYRE COMPANY LTD                  ,46.35,Dec-21
EREWASH BOROUGH COUNCIL,6465,Household Waste Collection    ,Tyres                         ,30-Oct-2021,LODGE TYRE COMPANY LTD                  ,835.98,Dec-21
EREWASH BOROUGH COUNCIL,6465,Trade Waste                   ,Tyres                         ,30-Oct-2021,LODGE TYRE COMPANY LTD                  ,211.44,Dec-21
EREWASH BOROUGH COUNCIL,6465,Kerbside Recycling Collection ,Tyres                         ,30-Oct-2021,LODGE TYRE COMPANY LTD                  ,"1,797.62",Dec-21
EREWASH BOROUGH COUNCIL,6465,Street Scene                  ,Tyres                         ,30-Oct-2021,LODGE TYRE COMPANY LTD                  ,101.35,Dec-21
EREWASH BOROUGH COUNCIL,6465,Green Space                   ,Tyres                         ,30-Oct-2021,LODGE TYRE COMPANY LTD                  ,195.25,Dec-21
EREWASH BOROUGH COUNCIL,6485,Accountancy                   ,Agency Staff                  ,05-Dec-2021,MACILDOWIE RECRUITMENT EXPERTISE        ,969.90,Dec-21
EREWASH BOROUGH COUNCIL,6486,Accountancy                   ,Agency Staff                  ,05-Dec-2021,MACILDOWIE RECRUITMENT EXPERTISE        ,"1,003.81",Dec-21
EREWASH BOROUGH COUNCIL,6685,Accountancy                   ,Agency Staff                  ,12-Dec-2021,MACILDOWIE RECRUITMENT EXPERTISE        ,976.68,Dec-21
EREWASH BOROUGH COUNCIL,6935,Accountancy                   ,Agency Staff                  ,19-Dec-2021,MACILDOWIE RECRUITMENT EXPERTISE        ,"1,003.81",Dec-21
EREWASH BOROUGH COUNCIL,6073,Accountancy                   ,Agency Staff                  ,21-Nov-2021,MACILDOWIE RECRUITMENT EXPERTISE        ,406.95,Dec-21
EREWASH BOROUGH COUNCIL,5295,Green Space                   ,Materials/Consumables         ,28-Oct-2021,MAIN MAN SUPPLIES LTD                   ,"1,032.00",Dec-21
EREWASH BOROUGH COUNCIL,6682,Ilkeston Charter Fair         ,Contracted Services           ,28-Oct-2021,MARWOOD GROUP LIMITED                   ,"1,938.00",Dec-21
EREWASH BOROUGH COUNCIL,6682,Ilkeston Charter Fair         ,Contracted Services           ,28-Oct-2021,MARWOOD GROUP LIMITED                   ,"1,162.80",Dec-21
EREWASH BOROUGH COUNCIL,6437,Homelessness                  ,Fees Costs and Expenses       ,01-Nov-2021,MASTERNAUT (UK) LTD                     ,"3,049.80",Dec-21
EREWASH BOROUGH COUNCIL,7069,Economic Development          ,Contracted Services           ,22-Dec-2021,MAYBE SOLUTIONS LIMITED                 ,"3,000.00",Dec-21
EREWASH BOROUGH COUNCIL,5884,Property and Estates          ,Repairs and Maintenance       ,16-Nov-2021,MDB PLUMBING (NOTTM) LTD                ,281.91,Dec-21
EREWASH BOROUGH COUNCIL,5592,Property and Estates          ,Repairs and Maintenance       ,08-Nov-2021,MDB PLUMBING (NOTTM) LTD                ,"1,141.23",Dec-21
EREWASH BOROUGH COUNCIL,5760,Property and Estates          ,Repairs and Maintenance       ,11-Nov-2021,MDB PLUMBING (NOTTM) LTD                ,409.20,Dec-21
EREWASH BOROUGH COUNCIL,5993,Occupational Health & Welfare ,Occupational Health Service   ,04-Nov-2021,MEDIGOLD HEALTH CONSULTANCY LIMITED     ,490.00,Dec-21
EREWASH BOROUGH COUNCIL,6394,Car Parking                   ,Credit/Debit Card Charges     ,01-Dec-2021,METRIC GROUP LTD                        ,976.50,Dec-21
EREWASH BOROUGH COUNCIL,6052,Kerbside Recycling Collection ,Bins                          ,05-Nov-2021,MGB PLASTICS LTD                        ,"4,320.00",Dec-21
EREWASH BOROUGH COUNCIL,6052,Kerbside Recycling Collection ,Bins                          ,05-Nov-2021,MGB PLASTICS LTD                        ,"7,200.00",Dec-21
